bitfinex-derivatives/quotes_SOLF0:USTF0_20230701
["timestamp","ask_amount","ask_price","bid_price","bid_amount"]
[1688197935874,109.05,18.385,18.374,109.84235291]
[1688197936077,109.05,18.385,18.374,109.05]
[1688197936973,0.0792163,18.381,18.378,0.75494496]
[1688197970501,96.76,18.38,18.378,0.75494496]
[1688197974304,0.0792163,18.381,18.374,26.71909341]
[1688197974305,202.74075055,18.379,18.374,26.71909341]
[1688197974598,96.76,18.375,18.368,97.69]
[1688197975296,0.83198565,18.373,18.37,0.85657671]
[1688197986045,586.0,18.411,18.372,97.69]
[1688197986303,97.69,18.382,18.376,97.69]
[1688197987154,97.69,18.382,18.377,0.82654127]
[1688197988012,96.76,18.386,18.379,97.69]
[1688197988235,104.99903094,18.385,18.381,0.87472865]
[1688197991107,104.99903094,18.384,18.381,0.87472865]
[1688197991470,108.49,18.388,18.381,0.87472865]
[1688197991705,104.99926541,18.387,18.381,0.87472865]
[1688197997948,108.49,18.386,18.381,0.87472865]
[1688197998209,104.99926541,18.385,18.381,0.87472865]
[1688197999709,27.79145016,18.394,18.386,200.0]
[1688197999909,75.93217874,18.419,18.377,27.76602531]
[1688197999910,58.5756,18.402,18.393,108.49]
[1688198000113,108.49,18.408,18.396,109.23449153]
[1688198000413,108.49,18.406,18.4,0.75188537]
[1688198000604,108.49,18.406,18.401,0.73793987]
[1688198001811,108.49,18.403,18.401,0.73793987]
[1688198002247,108.41,18.406,18.401,0.73793987]
[1688198005318,58.5756,18.41,18.401,0.73793987]
[1688198007715,108.49,18.408,18.401,0.73793987]
[1688198008117,107.73,18.405,18.401,0.73793987]
[1688198009416,108.41,18.407,18.401,0.73793987]
[1688198011212,108.49,18.405,18.393,108.39]
[1688198011621,107.73,18.402,18.391,108.49]
[1688198012522,0.73760157,18.398,18.395,0.74330466]
[1688198017814,108.49,18.405,18.396,200.0]
[1688198018024,586.0,18.451,18.396,200.0]
[1688198018025,108.49,18.427,18.404,542.52]
[1688198018216,108.49,18.427,18.396,434.07]
[1688198018217,108.41,18.425,18.412,107.5]
[1688198018925,108.41,18.425,18.417,0.73409916]
[1688198019219,108.49,18.429,18.417,0.73409916]
[1688198019423,108.49,18.429,18.421,0.78327963]
[1688198019424,59.5063,18.428,18.421,0.78327963]
[1688198020616,107.73,18.426,18.421,0.78327963]
[1688198020824,118.8,18.427,18.414,118.87]
[1688198021028,0.77929185,18.422,18.414,118.87]
[1688198021926,0.77929185,18.422,18.416,0.75501965]
[1688198022741,119.64929185,18.422,18.41,118.13]
[1688198022927,118.87,18.422,18.41,118.13]
[1688198023240,118.87,18.416,18.403,145.06310998]
[1688198023534,118.87,18.416,18.403,118.37]
[1688198023920,0.76519487,18.411,18.408,0.749332]
[1688198033436,0.76519487,18.411,18.401,26.56364061]
[1688198033629,0.76519487,18.411,18.4,118.72]
[1688198033826,0.76519487,18.411,18.396,214.0342]
[1688198033827,118.81,18.41,18.398,118.13]
[1688198034032,118.81,18.41,18.4,26.7945343]
[1688198034240,55.0541,18.415,18.396,200.0]
[1688198034542,55.0541,18.415,18.404,0.74326515]
[1688198034934,200.0,18.412,18.396,27.17982]
[1688198035138,118.87,18.405,18.396,26.63625983]
[1688198035436,118.87,18.405,18.391,118.87]
[1688198036026,0.8438841,18.4,18.396,0.78514034]
[1688198036236,0.75304309,18.4,18.396,0.76626009]
[1688198047250,118.81,18.399,18.386,118.13]
[1688198047935,200.0,18.402,18.383,118.87]
[1688198048145,0.80776139,18.394,18.383,118.87]
[1688198049243,0.80776139,18.394,18.387,0.87978256]
[1688198062450,54.4331,18.403,18.392,118.23]
[1688198063555,0.77996443,18.399,18.396,0.84334514]
[1688198108011,108.34,18.413,18.398,107.85]
[1688198108193,108.14,18.418,18.407,108.25]
[1688198108397,163.7718,18.418,18.407,108.25]
[1688198108601,108.19,18.427,18.416,107.85]
[1688198108801,55.6318,18.426,18.416,107.85]
[1688198109132,0.84057765,18.423,18.419,0.8716786]
[1688198109493,0.84057765,18.423,18.421,108.34]
[1688198109694,55.6318,18.429,18.421,108.34]
[1688198109993,55.6318,18.429,18.426,108.25]
[1688198110203,108.34,18.44,18.428,108.34]
[1688198110402,55.909,18.441,18.431,108.34]
[1688198110599,0.74703657,18.438,18.434,0.7444507]
[1688198110899,0.74703657,18.438,18.427,118.69]
[1688198111201,118.4,18.44,18.427,118.69]
[1688198111404,118.69,18.437,18.424,118.12]
[1688198111899,0.82286405,18.432,18.422,118.15]
[1688198112100,118.69,18.429,18.416,118.15]
[1688198112297,118.69,18.427,18.414,118.12]
[1688198113101,0.87204887,18.422,18.419,0.73439863]
[1688198114299,0.87204887,18.422,18.42,118.29858216]
[1688198114498,0.87204887,18.422,18.419,0.73439863]
[1688198118104,118.4,18.424,18.41,144.20689406]
[1688198118706,118.69,18.421,18.408,118.06]
[1688198119108,0.8597284,18.416,18.413,0.85117452]
[1688198120516,0.8597284,18.416,18.405,118.69]
[1688198120810,118.69,18.418,18.405,118.69]
[1688198121703,0.79147922,18.413,18.41,0.84667977]
[1688198122412,118.59147922,18.413,18.4,118.12]
[1688198122609,117.8,18.413,18.4,118.12]
[1688198123506,0.78112466,18.408,18.405,0.11474286]
[1688198124009,119.47112466,18.408,18.396,27.05259196]
[1688198124308,118.69,18.408,18.395,118.06]
[1688198125011,0.81632551,18.403,18.398,118.69]
[1688198125206,0.73686512,18.402,18.398,118.69]
[1688198125397,0.83260266,18.402,18.398,118.69]
[1688198126214,117.8,18.411,18.402,0.07422767]
[1688198126512,118.69,18.409,18.402,0.07422767]
[1688198127209,0.75908322,18.407,18.404,0.75846766]
[1688198130315,0.75908322,18.407,18.402,0.07422767]
[1688198131208,0.75908322,18.407,18.403,0.07443018]
[1688198134212,0.75908322,18.407,18.402,0.07422767]
[1688198135715,0.75908322,18.407,18.402,1e-08]
[1688198136516,118.4,18.404,18.393,146.02552421]
[1688198136715,118.4,18.404,18.391,118.06]
[1688198136716,0.87094606,18.4,18.391,118.06]
[1688198136917,0.87094606,18.4,18.392,9.98323598]
[1688198139009,1271.28154096,18.486,18.392,9.98323598]
[1688198139010,75.93217874,18.444,18.416,125.61222991]
[1688198139248,118.69,18.456,18.44,118.06]
[1688198139418,200.0,18.462,18.443,118.15]
[1688198139419,56.0459,18.452,18.443,118.15]
[1688198140115,474.76,18.465,18.446,0.82676252]
[1688198140116,118.69,18.458,18.446,0.82676252]
[1688198140312,145.62335965,18.461,18.447,118.69]
[1688198140515,6.49513544,18.46,18.447,118.69]
[1688198141418,0.82727542,18.455,18.452,0.76563165]
[1688198143121,0.82727542,18.455,18.445,118.06]
[1688198143315,118.4,18.458,18.445,118.06]
[1688198143736,118.69,18.45,18.438,118.69]
[1688198144218,0.76153521,18.446,18.442,0.82748399]
[1688198146119,0.76153521,18.446,18.434,48.81]
[1688198146325,48.49,18.451,18.434,48.81]
[1688198147229,0.81999201,18.444,18.434,48.81]
[1688198147827,0.81999201,18.444,18.438,48.81]
[1688198149164,48.81,18.46,18.443,48.73]
[1688198149424,6.49627624,18.459,18.443,48.73]
[1688198150130,0.87094602,18.453,18.449,0.83042157]
[1688198154020,200.0,18.462,18.447,48.81]
[1688198154227,6.49546202,18.461,18.447,48.81]
[1688198154623,6.49546202,18.46,18.447,48.81]
[1688198154928,6.49546202,18.459,18.447,48.81]
[1688198155126,0.83187806,18.455,18.452,0.80740774]
[1688198155328,0.87665771,18.455,18.452,0.80740774]
[1688198157767,0.87665771,18.455,18.447,48.81]
[1688198158123,0.87665771,18.455,18.45,48.81]
[1688198158327,200.0,18.463,18.45,48.81]
[1688198158526,6.49556787,18.462,18.45,48.81]
[1688198158931,0.78122002,18.458,18.454,0.81697487]
[1688198160529,0.78122002,18.458,18.447,48.35]
[1688198160730,48.44,18.461,18.444,48.81]
[1688198161038,6.49543932,18.46,18.444,48.81]
[1688198161630,0.74689069,18.454,18.45,0.07683811]
[1688198161830,0.74689069,18.454,18.444,48.81]
[1688198161831,0.74689069,18.454,18.447,48.81]
[1688198162100,200.0,18.463,18.447,48.81]
[1688198162233,6.49546665,18.462,18.447,48.81]
[1688198162933,0.74971893,18.456,18.447,48.81]
[1688198164128,0.74971893,18.456,18.45,48.81]
[1688198164434,0.85204087,18.455,18.45,48.81]
[1688198165338,0.85204087,18.455,18.448,48.73]
[1688198165542,0.82996417,18.453,18.448,48.73]
[1688198165732,0.75364073,18.452,18.448,48.73]
[1688198166033,0.89027995,18.452,18.448,48.73]
[1688198166228,0.89027995,18.452,18.445,48.81]
[1688198166429,0.78464882,18.45,18.435,26.73504842]
[1688198166629,0.85099685,18.444,18.434,48.81]
[1688198166931,48.49,18.459,18.442,48.81]
[1688198167128,6.4966666,18.458,18.442,48.81]
[1688198167326,0.86585006,18.452,18.442,48.81]
[1688198169236,256.0459,18.464,18.448,48.35]
[1688198169442,6.49497859,18.463,18.448,48.35]
[1688198169644,6.49497859,18.463,18.45,48.81]
[1688198170344,0.82325335,18.458,18.455,0.80178418]
[1688198177247,48.45,18.463,18.446,48.81]
[1688198177440,6.49478493,18.462,18.446,48.81]
[1688198178355,0.85590015,18.456,18.452,0.06377222]
[1688198179639,48.49,18.459,18.444,48.81]
[1688198179844,48.81,18.457,18.44,48.35]
[1688198180058,48.45,18.462,18.443,48.73]
[1688198180365,6.49474157,18.461,18.443,48.73]
[1688198180550,48.45,18.459,18.443,48.73]
[1688198180762,0.73991292,18.454,18.443,48.73]
[1688198183353,0.73991292,18.454,18.44,48.81]
[1688198183610,0.8550187,18.449,18.44,48.81]
[1688198188659,0.8550187,18.449,18.443,48.35]
[1688198188978,0.84792188,18.448,18.443,48.35]
[1688198189153,0.84354086,18.447,18.443,48.35]
[1688198189358,0.78299492,18.447,18.443,48.35]
[1688198200490,48.49,18.462,18.443,48.35]
[1688198200693,48.81,18.468,18.45,48.81]
[1688198201213,48.44,18.471,18.454,48.35]
[1688198201413,248.81,18.474,18.457,48.81]
[1688198201666,0.80173693,18.467,18.464,0.78130752]
[1688198201865,0.82207821,18.467,18.464,0.78130752]
[1688198204873,0.82207821,18.467,18.457,48.81]
[1688198206069,0.82207821,18.467,18.453,119.85]
[1688198206328,0.79521975,18.462,18.453,119.85]
[1688198206470,0.79521975,18.462,18.454,111.08452881]
[1688198208584,0.79521975,18.462,18.45,119.01]
[1688198208779,0.8019991,18.458,18.451,111.14650004]
[1688198214587,0.8019991,18.458,18.446,119.85]
[1688198214783,0.88438947,18.454,18.447,111.18102135]
[1688198216060,120.26438947,18.454,18.447,111.18102135]
[1688198216182,120.26438947,18.454,18.448,111.18102135]
[1688198216486,56.40948921,18.453,18.449,37.65522273]
[1688198216684,56.40948921,18.453,18.442,119.23]
[1688198216886,0.77038921,18.453,18.442,119.23]
[1688198217883,0.77038921,18.453,18.44,9.8085]
[1688198218083,119.17,18.461,18.449,119.23]
[1688198219087,0.86289807,18.457,18.453,0.81710248]
[1688198238408,58.2904,18.462,18.453,0.81710248]
[1688198238611,119.17,18.466,18.454,107.43660479]
[1688198239308,54.4471,18.47,18.454,107.43660479]
[1688198239510,0.85570859,18.464,18.46,0.82263584]
[1688198240910,119.85,18.471,18.46,0.82263584]
[1688198241305,119.85,18.475,18.462,119.85]
[1688198241506,54.4471,18.478,18.465,119.23]
[1688198241911,0.76325384,18.473,18.47,0.83521889]
[1688198248813,0.76325384,18.473,18.464,146.53582903]
[1688198249012,119.59,18.472,18.464,26.68582903]
[1688198249212,119.59,18.472,18.457,119.01]
[1688198249417,118.8,18.469,18.457,119.01]
[1688198249616,0.81896811,18.465,18.461,0.79205516]
[1688198265940,109.32896811,18.465,18.461,0.79205516]
[1688198266141,0.06858258,18.463,18.461,0.79205516]
[1688198270036,0.06858258,18.463,18.461,109.79205516]
[1688198270343,108.44,18.472,18.461,109.79205516]
[1688198270547,107.95,18.475,18.464,108.14]
[1688198270765,108.78,18.477,18.466,108.73]
[1688198271248,0.83504675,18.473,18.47,0.84514225]
[1688198277741,108.78,18.477,18.47,0.84514225]
[1688198278641,0.8370495,18.475,18.47,0.84514225]
[1688198283146,0.8370495,18.475,18.464,27.4098846]
[1688198283438,0.8370495,18.475,18.465,108.02]
[1688198283646,108.78,18.477,18.465,108.02]
[1688198284338,0.88294675,18.473,18.469,0.77310616]
[1688198293752,108.51,18.48,18.469,0.77310616]
[1688198293945,108.51,18.48,18.468,109.0]
[1688198294755,0.73157462,18.476,18.472,0.82082513]
[1688198306554,109.24157462,18.476,18.465,109.0]
[1688198306858,109.0,18.473,18.466,107.23117833]
[1688198307060,109.0,18.473,18.462,109.0]
[1688198307261,109.0,18.473,18.463,107.25254546]
[1688198307506,0.87484003,18.47,18.466,0.77444261]
[1688198319768,109.0,18.477,18.467,106.97859853]
[1688198320872,0.83604314,18.474,18.47,0.73190086]
[1688198323172,108.78604314,18.474,18.463,108.02]
[1688198323375,107.95,18.474,18.464,106.96277053]
[1688198324062,0.89133691,18.471,18.467,0.79459994]
[1688198324265,0.89133691,18.471,18.468,106.96277053]
[1688198325673,0.89133691,18.471,18.467,0.79459994]
[1688198326674,108.84133691,18.471,18.46,109.0]
[1688198326975,107.95,18.471,18.46,109.0]
[1688198327673,0.8115051,18.467,18.464,0.73467772]
[1688198328271,0.8115051,18.467,18.457,108.02]
[1688198329275,0.8115051,18.467,18.46,0.82515022]
[1688198336882,200.0,18.465,18.435,25.03304045]
[1688198337089,108.51,18.461,18.449,108.02]
[1688198337275,436.0,18.471,18.448,12.7701]
[1688198337276,109.0,18.463,18.451,108.14]
[1688198337484,108.51,18.466,18.454,108.14]
[1688198337879,0.88720008,18.462,18.454,108.14]
[1688198338083,0.88720008,18.462,18.458,0.39119719]
[1688198345597,0.88720008,18.462,18.458,107.33879241]
[1688198352097,108.83720008,18.462,18.459,106.94759522]
[1688198352298,108.83720008,18.462,18.46,106.94759522]
[1688198352498,0.88720008,18.462,18.461,106.94759522]
[1688198352750,109.0,18.461,18.458,0.39119719]
[1688198354798,109.0,18.461,18.458,107.34086643]
[1688198354999,109.0,18.461,18.459,106.94966924]
[1688198355295,109.0,18.461,18.46,106.94966924]
[1688198356495,109.0,18.461,18.46,48.34036924]
[1688198356696,109.0,18.461,18.458,0.39119719]
[1688198360699,108.78,18.459,18.445,108.02]
[1688198360896,109.0,18.456,18.445,108.02]
[1688198361704,0.77611943,18.452,18.445,108.02]
[1688198361895,0.77611943,18.452,18.443,109.0]
[1688198364808,0.77611943,18.452,18.441,172.71610172]
[1688198365107,108.78,18.451,18.442,145.62187197]
[1688198365308,0.7470787,18.448,18.443,145.62187197]
[1688198365507,0.00688577,18.448,18.44,164.8403]
[1688198365810,0.00688577,18.448,18.441,155.60254884]
[1688198366006,0.00688577,18.448,18.441,145.64625552]
[1688198366405,0.00688577,18.448,18.443,0.74246909]
[1688198367219,109.00688577,18.448,18.443,0.74246909]
[1688198368509,108.78,18.445,18.443,0.74246909]
[1688198368874,107.95688577,18.448,18.443,0.74246909]
[1688198369207,108.44,18.445,18.443,0.74246909]
[1688198378410,0.00688577,18.448,18.443,0.74246909]
[1688198385814,96.11688577,18.448,18.443,0.74246909]
[1688198391213,0.00688577,18.448,18.443,0.74246909]
[1688198392120,97.0,18.446,18.443,0.74246909]
[1688198393116,96.11,18.444,18.443,0.74246909]
[1688198395812,107.85,18.446,18.443,0.74246909]
[1688198399718,107.06688577,18.448,18.443,0.74246909]
[1688198400691,0.00688577,18.448,18.443,0.74246909]
[1688198409134,109.83381091,18.48,18.438,200.0]
[1688198409135,54.9105,18.473,18.438,200.0]
[1688198409333,54.9105,18.473,18.434,80.22461784]
[1688198409334,54.9105,18.473,18.448,200.0]
[1688198409630,200.0,18.475,18.448,200.0]
[1688198409844,61.39983472,18.474,18.448,200.0]
[1688198410040,0.82098696,18.463,18.459,0.74693198]
[1688198410225,0.73872328,18.463,18.459,0.74693198]
[1688198418736,27.26523423,18.466,18.444,53.5599]
[1688198418935,27.26523423,18.466,18.443,27.74480756]
[1688198419216,27.07678,18.466,18.443,27.74480756]
[1688198419334,27.07678,18.466,18.439,145.64838322]
[1688198419538,27.07678,18.466,18.44,68.22391212]
[1688198419730,27.07678,18.466,18.44,58.2675]
[1688198420040,200.0,18.476,18.44,58.2675]
[1688198420041,0.77359396,18.455,18.44,58.2675]
[1688198420337,200.0,18.476,18.439,145.66578314]
[1688198420537,200.0,18.466,18.439,58.2675]
[1688198420727,200.0,18.466,18.439,203.93260341]
[1688198420935,200.0,18.466,18.44,9.95755935]
[1688198421364,0.7652087,18.455,18.451,0.75521913]
[1688198421533,0.83286083,18.455,18.451,0.73344103]
[1688198429448,200.0,18.456,18.428,200.0]
[1688198429762,200.0,18.456,18.43,57.5313]
[1688198429944,200.0,18.456,18.431,9.96000305]
[1688198430548,0.83903647,18.445,18.431,9.96000305]
[1688198430798,0.83069295,18.44,18.432,9.96000305]
[1688198430948,55.7859,18.455,18.433,9.96000305]
[1688198431245,55.7859,18.455,18.43,57.5313]
[1688198431547,55.7859,18.455,18.431,9.96000364]
[1688198432035,0.7420102,18.445,18.441,0.81586035]
[1688198432238,0.73487344,18.445,18.441,0.85296984]
[1688198440068,200.0,18.466,18.441,0.85296984]
[1688198440353,59.3659,18.465,18.439,145.70034044]
[1688198440861,0.83348622,18.454,18.45,0.87395835]
[1688198441151,0.87104329,18.454,18.45,0.8791486]
[1688198453762,0.87104329,18.454,18.44,57.3594]
[1688198453763,200.0,18.456,18.44,57.3594]
[1688198454669,58.2176,18.455,18.429,145.69771521]
[1688198454864,58.2176,18.455,18.43,66.7194716]
[1688198455070,0.76500954,18.444,18.44,0.73940167]
[1688198455263,0.79462684,18.444,18.44,0.73940167]
[1688198480593,58.2176,18.455,18.431,27.29224058]
[1688198480884,58.2176,18.455,18.432,9.96054826]
[1688198481076,58.2176,18.455,18.43,56.7597]
[1688198481279,58.2176,18.455,18.431,9.96053825]
[1688198481479,58.2176,18.455,18.441,0.83892676]
[1688198481681,58.2176,18.455,18.43,83.88937]
[1688198481869,58.2176,18.455,18.431,9.96062835]
[1688198482070,85.9204241,18.455,18.431,9.96062835]
[1688198482577,0.84107374,18.445,18.441,0.88458032]
[1688198482776,0.82725715,18.445,18.441,0.88752735]
[1688198486480,58.2176,18.455,18.438,200.0]
[1688198486985,58.2176,18.455,18.439,128.84307219]
[1688198487378,0.80580996,18.449,18.445,0.8124137]
[1688198490680,0.80580996,18.449,18.432,57.1758]
[1688198490681,58.2176,18.455,18.432,57.1758]
[1688198491781,0.87580608,18.445,18.442,0.8778054]
[1688198491986,0.79544205,18.445,18.442,0.73988035]
[1688198493385,58.2176,18.455,18.438,200.0]
[1688198494285,0.73721881,18.448,18.445,0.87674988]
[1688198494576,0.84836619,18.448,18.445,0.87674988]
[1688198503700,0.84836619,18.448,18.429,72.49942093]
[1688198503811,27.13217305,18.453,18.43,9.96066173]
[1688198503995,58.2176,18.455,18.43,9.96066173]
[1688198504495,0.80592718,18.444,18.43,9.96066173]
[1688198504699,58.2176,18.455,18.43,9.96066173]
[1688198505505,0.76219351,18.444,18.43,9.96066173]
[1688198505798,58.2176,18.455,18.43,9.96066173]
[1688198506593,0.82592873,18.444,18.43,9.96066173]
[1688198506792,58.2176,18.455,18.43,9.96066173]
[1688198507396,200.0,18.447,18.428,26.73199622]
[1688198507648,0.73775474,18.439,18.428,26.73199622]
[1688198507797,0.73775474,18.439,18.422,57.7558]
[1688198507991,0.8328961,18.432,18.423,9.96359125]
[1688198508297,200.0,18.447,18.423,9.96359125]
[1688198508298,0.73275656,18.429,18.423,9.96359125]
[1688198508500,0.77655668,18.428,18.423,9.96359125]
[1688198508805,53.9855,18.446,18.423,9.96359125]
[1688198509694,0.77217595,18.436,18.433,0.79317315]
[1688198509891,0.7400781,18.436,18.433,0.78823183]
[1688198510310,53.9855,18.446,18.423,56.6394]
[1688198510501,53.9855,18.446,18.424,9.96383595]
[1688198511191,0.86745553,18.437,18.425,9.96383595]
[1688198511387,53.9855,18.446,18.419,72.62211825]
[1688198511592,53.9855,18.446,18.42,9.96383334]
[1688198511593,112.37516226,18.445,18.42,9.96383334]
[1688198511803,139.48277226,18.445,18.42,9.96383334]
[1688198512103,112.37516226,18.444,18.42,9.96383334]
[1688198512395,0.79608796,18.434,18.42,9.96383334]
[1688198512599,0.84945041,18.429,18.42,9.96383334]
[1688198512792,0.85440149,18.426,18.42,9.96383334]
[1688198513020,0.88752113,18.425,18.42,9.96383334]
[1688198513193,27.10908,18.444,18.42,9.96383334]
[1688198513499,112.3848881,18.443,18.42,9.96383334]
[1688198514298,0.81526467,18.433,18.43,0.80868319]
[1688198514499,0.88974372,18.433,18.43,0.73798731]
[1688198515006,27.10908,18.444,18.419,26.99068717]
[1688198515196,112.40677595,18.443,18.42,9.9667126]
[1688198515696,112.40677595,18.443,18.421,9.9667126]
[1688198515900,112.40677595,18.443,18.422,9.9667126]
[1688198516100,0.8570215,18.434,18.431,0.14451186]
[1688198516296,0.8636726,18.434,18.431,0.14451186]
[1688198517008,200.0,18.438,18.419,9.96583645]
[1688198517199,112.41003626,18.437,18.418,26.68337418]
[1688198517400,112.41003626,18.437,18.416,55.4198]
[1688198517598,112.41003626,18.437,18.417,9.96796372]
[1688198517895,0.84541257,18.429,18.408,16.17607705]
[1688198518097,0.78493632,18.42,18.409,9.9679318]
[1688198518408,200.0,18.438,18.409,9.9679318]
[1688198518600,112.42001728,18.437,18.409,9.9679318]
[1688198519492,0.80963188,18.425,18.421,0.76936961]
[1688198519608,0.79656144,18.425,18.421,0.75908672]
[1688198522733,55.1947,18.437,18.409,59.266]
[1688198522903,139.55198377,18.436,18.41,9.96891602]
[1688198523107,27.12232,18.435,18.41,9.96891602]
[1688198523613,0.81002844,18.424,18.421,0.10717504]
[1688198523806,0.75311914,18.424,18.421,0.10717504]
[1688198525604,27.12232,18.435,18.41,9.96891602]
[1688198526401,27.12232,18.435,18.41,36.48561947]
[1688198526603,0.8771496,18.424,18.411,9.96891602]
[1688198526802,0.75200802,18.419,18.412,9.96891602]
[1688198527005,0.79841792,18.417,18.413,9.96891602]
[1688198527210,0.79841792,18.417,18.414,9.96891602]
[1688198527211,0.8612537,18.417,18.414,9.96891602]
[1688198527404,0.8612537,18.417,18.415,9.96891602]
[1688198527615,0.8612537,18.417,18.416,9.96891602]
[1688198528109,0.8612537,18.417,18.41,9.96891602]
[1688198528309,0.8612537,18.417,18.411,9.9690188]
[1688198528506,0.8612537,18.417,18.412,9.9690188]
[1688198528707,0.8612537,18.417,18.413,9.9690188]
[1688198528909,0.8612537,18.417,18.414,9.9690188]
[1688198529109,0.8612537,18.417,18.415,9.9690188]
[1688198529410,0.8612537,18.417,18.409,59.266]
[1688198529611,0.8612537,18.417,18.41,9.96897]
[1688198531450,54.760174,18.435,18.41,9.96897]
[1688198532531,0.86174029,18.424,18.421,0.8612537]
[1688198532717,0.76574885,18.424,18.421,0.80671062]
[1688198533421,54.760174,18.435,18.409,59.266]
[1688198533716,54.760174,18.435,18.41,9.97038875]
[1688198534312,0.73398233,18.424,18.41,9.97038875]
[1688198534725,27.637854,18.435,18.41,9.97038875]
[1688198534825,55.1947,18.437,18.41,9.97038875]
[1688198535128,226.84038328,18.438,18.41,9.97038875]
[1688198535419,139.5639872,18.437,18.41,9.97038875]
[1688198535614,0.78877086,18.425,18.41,9.97038875]
[1688198535838,55.9908,18.437,18.417,200.0]
[1688198536018,55.9908,18.437,18.418,9.97038875]
[1688198537025,0.7608911,18.429,18.426,0.89209883]
[1688198537319,0.83791928,18.429,18.426,0.89209883]
[1688198546724,55.9908,18.437,18.426,0.89209883]
[1688198547667,0.8506165,18.433,18.426,0.89209883]
[1688198556329,145.79079872,18.462,18.427,200.0]
[1688198556330,200.0,18.457,18.427,200.0]
[1688198556527,55.1313,18.447,18.427,200.0]
[1688198556740,55.1313,18.447,18.428,55.0698]
[1688198556931,200.0,18.457,18.428,55.0698]
[1688198557128,194.58257956,18.456,18.428,55.0698]
[1688198557389,112.35981956,18.455,18.429,9.96240626]
[1688198557536,0.74565598,18.444,18.44,0.76465373]
[1688198557734,0.87444253,18.444,18.44,0.74754963]
[1688198567746,0.87444253,18.444,18.417,74.15735354]
[1688198567747,26.51471316,18.446,18.417,200.0]
[1688198567936,112.39144967,18.445,18.423,57.9776]
[1688198568175,171.26324967,18.445,18.423,57.9776]
[1688198568342,112.39144967,18.444,18.423,57.9776]
[1688198568744,0.8573469,18.435,18.432,0.74984454]
[1688198569042,0.75560691,18.435,18.432,0.7824691]
[1688198573843,107.94,18.434,18.432,0.7824691]
[1688198575709,0.75560691,18.435,18.432,0.7824691]
[1688198578037,107.94,18.434,18.432,0.7824691]
[1688198578249,107.94,18.434,18.423,191.87647062]
[1688198578839,107.94,18.434,18.423,133.89887062]
[1688198579044,107.94,18.431,18.423,26.53887062]
[1688198579239,0.75772012,18.429,18.425,0.78495827]
[1688198581759,108.69772012,18.429,18.425,0.78495827]
[1688198581948,107.94,18.427,18.425,0.78495827]
[1688198582675,539.49,18.427,18.416,26.48332302]
[1688198582964,539.49,18.427,18.403,156.68532662]
[1688198582965,107.94,18.417,18.4,107.94]
[1688198583252,107.22,18.419,18.408,107.94]
[1688198583952,107.94,18.429,18.417,107.94]
[1688198584161,107.94,18.426,18.414,107.94]
[1688198584959,0.77409244,18.422,18.418,0.84499598]
[1688198589952,107.01,18.419,18.418,0.00560402]
[1688198596234,107.01,18.419,18.406,57.3894]
[1688198596462,107.94,18.413,18.401,107.94]
[1688198597321,0.8358893,18.409,18.405,0.79492256]
[1688198597455,0.80491671,18.409,18.405,0.75739874]
[1688198599559,107.94,18.408,18.405,0.75739874]
[1688198601858,107.01,18.406,18.405,0.75739874]
[1688198605267,107.01,18.406,18.392,134.84676055]
[1688198605462,107.94,18.403,18.392,134.84676055]
[1688198606359,0.8759565,18.399,18.396,0.22921789]
[1688198618690,59.3933,18.41,18.396,0.22921789]
[1688198618691,107.01,18.406,18.396,0.22921789]
[1688198618914,107.01,18.406,18.394,107.36]
[1688198619661,107.01,18.406,18.398,0.7722614]
[1688198619662,0.87931015,18.402,18.398,0.7722614]
[1688198630268,107.94,18.409,18.398,0.7722614]
[1688198630476,107.94,18.409,18.397,107.57]
[1688198631282,0.84668005,18.405,18.401,0.80728455]
[1688198636985,107.85668005,18.405,18.401,0.80728455]
[1688198641103,107.94,18.402,18.395,27.82506973]
[1688198641295,107.94,18.402,18.392,26.90676055]